bitfinex/quotes_ETHUSD_20220120
["timestamp","ask_amount","ask_price","bid_price","bid_amount"]
[1642705403560,1.54230209,3218.1,3217.5,2.05633772]
[1642705403961,0.00227369,3218.1,3217.7,1.11039258]
[1642705404206,0.00227369,3218.1,3217.8,0.3]
[1642705405208,0.00227369,3218.1,3217.8,0.7]
[1642705405608,0.00227369,3218.1,3218.0,1.25848178]
[1642705406010,0.00227369,3218.1,3218.0,1.85848178]
[1642705407958,0.00227369,3218.1,3217.8,0.4]
[1642705408457,0.00170527,3218.0,3217.8,0.4]
[1642705408859,0.0001905,3217.9,3217.8,0.4]
[1642705409258,0.00189577,3218.2,3217.8,0.7]
[1642705409566,0.01244987,3218.3,3217.8,0.7]
[1642705409567,0.00132734,3218.1,3217.8,0.7]
[1642705409758,0.00132734,3218.1,3217.9,0.04042438]
[1642705409957,0.00189577,3218.2,3218.0,0.98641665]
[1642705410358,0.00132734,3218.1,3218.0,1.28641665]
[1642705410560,0.00132734,3218.1,3218.0,1.58641665]
[1642705410859,0.00132734,3218.1,3218.0,2.90092557]
[1642705411059,0.00132734,3218.1,3218.0,3.90092557]
[1642705411907,0.00132734,3218.1,3218.0,4.48132557]
[1642705412111,3.96192095,3219.2,3218.7,0.89103385]
[1642705412112,1.54230209,3219.2,3218.7,0.89103385]
[1642705412305,1.54230209,3219.2,3218.8,1.50643615]
[1642705412706,1.54230209,3219.3,3218.8,2.50643615]
[1642705412906,1.54230209,3219.3,3218.8,1.0]
[1642705413207,1.54230209,3219.3,3218.7,1.2724]
[1642705413208,1.54230209,3219.1,3218.7,1.2724]
[1642705413406,0.81438424,3218.5,3218.4,0.373]
[1642705413610,6.16438424,3218.5,3218.4,0.373]
[1642705413808,6.16438424,3218.5,3217.8,2.3794]
[1642705413809,6.17885455,3218.5,3217.8,2.3794]
[1642705414007,6.17885455,3218.5,3217.6,1.35693461]
[1642705414207,6.17885455,3218.5,3217.3,4.99827931]
[1642705414208,0.00170527,3218.4,3217.9,0.00113685]
[1642705414408,0.00170527,3218.4,3217.8,0.77689]
[1642705414612,6.17658085,3218.5,3217.9,0.00113684]
[1642705414613,0.00113685,3218.3,3217.9,0.00113684]
[1642705414808,7.71888294,3218.5,3218.4,0.39886315]
[1642705415208,0.46647984,3218.3,3217.9,0.00227369]
[1642705415662,0.46647984,3218.3,3217.5,0.78150739]
[1642705415863,0.46647984,3218.3,3217.6,0.00397896]
[1642705417869,2.01906396,3218.3,3217.6,0.00397896]
[1642705418068,2.01906396,3218.3,3217.6,0.30397896]
[1642705418571,1.55258412,3218.2,3217.7,0.00341054]
[1642705418770,1.50258412,3218.2,3217.7,0.00341054]
[1642705418968,0.46647984,3218.3,3217.7,0.00341054]
[1642705419205,0.46647984,3218.3,3217.5,0.00454739]
[1642705420205,0.46647984,3218.3,3217.7,1.56173614]
[1642705420616,0.46647984,3218.3,3217.8,0.30284212]
[1642705421008,0.46647984,3218.3,3217.9,0.00227369]
[1642705421410,0.46647984,3218.3,3217.8,0.00284212]
[1642705421606,0.46647984,3218.3,3217.8,0.30284212]
[1642705421807,0.46647984,3218.3,3217.8,0.3]
[1642705422009,0.46647984,3218.3,3217.9,0.30227369]
[1642705422416,0.46647984,3218.3,3218.2,0.97482161]
[1642705422963,0.81552109,3218.5,3218.2,1.57482161]
[1642705423262,2.63764647,3218.4,3218.2,1.57482161]
[1642705423463,2.63764647,3218.4,3218.3,4.54589082]
[1642705423662,0.81552109,3218.5,3218.4,4.05]
[1642705423863,0.81552109,3218.5,3218.4,4.423]
[1642705424062,0.81552109,3218.5,3218.4,5.023]
[1642705424262,0.01274943,3219.4,3219.1,0.95431553]
[1642705424463,0.01274943,3219.4,3219.1,1.0095]
[1642705424663,0.00454739,3219.3,3219.1,1.6095]
[1642705425068,0.00397896,3219.2,3219.1,1.6095]
[1642705425264,1.76216447,3219.2,3219.1,1.6095]
[1642705425463,1.76216447,3219.2,3219.1,2.0095]
[1642705426465,1.76216447,3219.2,3219.1,1.6095]
[1642705426711,0.00397896,3219.2,3219.1,1.6095]
[1642705428215,0.00397896,3219.2,3219.1,2.95071966]
[1642705429018,1.76207543,3219.2,3219.1,2.95071966]
[1642705429418,1.76207543,3219.2,3219.1,1.6095]
[1642705430017,1.76207543,3219.2,3219.1,1.65399899]
[1642705430224,0.00397896,3219.2,3219.1,1.65399899]
[1642705430653,0.00397896,3219.2,3219.1,2.02699899]
[1642705433960,0.00397896,3219.2,3219.1,1.65399899]
[1642705434207,0.00397896,3219.2,3219.1,0.64449899]
[1642705434608,0.00397896,3219.2,3219.1,5.2954675]
[1642705434906,0.00397896,3219.2,3219.1,5.5954675]
[1642705438363,0.00397896,3219.2,3219.1,8.2684675]
[1642705438564,0.00397896,3219.2,3219.1,5.9684675]
[1642705442511,0.01663598,3219.2,3219.1,0.77584807]
[1642705442709,7.72460327,3219.2,3219.1,0.77584807]
[1642705442913,6.16663598,3219.2,3219.1,0.77584807]
[1642705443512,0.01663598,3219.2,3218.8,1.25157359]
[1642705443712,2.63726502,3219.1,3218.8,1.25157359]
[1642705443912,2.64067556,3219.1,3218.8,1.25157359]
[1642705444113,0.00284212,3219.0,3218.8,1.25157359]
[1642705444312,0.00284212,3219.0,3218.8,1.85157359]
[1642705444612,0.00284212,3219.0,3218.7,0.8892241]
[1642705444613,0.00227369,3218.9,3218.7,0.6]
[1642705444814,0.00227369,3218.9,3218.7,0.3]
[1642705445014,0.00170527,3218.8,3218.6,1.55325]
[1642705445464,2.63726502,3219.0,3218.7,0.3]
[1642705445666,2.63726502,3218.9,3218.8,0.96126454]
[1642705445870,2.63726502,3218.9,3218.8,1.26126454]
[1642705446065,2.63726502,3218.9,3218.8,2.80818252]
[1642705446266,0.00284212,3219.0,3218.8,2.80818252]
[1642705447170,0.00284212,3219.0,3218.8,4.22278252]
[1642705447366,1.6416646,3219.7,3218.9,6.15]
[1642705447367,2.63726502,3219.3,3218.9,6.15]
[1642705447568,2.63726502,3219.2,3219.1,0.77645]
[1642705447766,2.63726502,3219.2,3219.1,1.14945]
[1642705447970,0.00170527,3219.3,3219.1,1.44945]
[1642705448169,0.00170527,3219.3,3219.1,1.74945]
[1642705448670,2.63897029,3219.3,3219.1,1.74945]
[1642705448870,2.63726502,3219.2,3219.1,1.74945]
[1642705449120,2.63726502,3219.2,3219.1,4.0787266]
[1642705449313,0.00170527,3219.3,3219.1,6.9791266]
[1642705449713,2.63668053,3219.6,3219.2,5.45]
[1642705449914,2.63668053,3219.6,3219.3,0.373]
[1642705450114,0.00113684,3219.5,3219.3,0.673]
[1642705450316,1.6416646,3219.7,3219.4,7.28376431]
[1642705450520,1.6416646,3219.7,3219.5,4.29708785]
[1642705450817,1.6416646,3219.7,3219.6,2.32864]
[1642705451024,6.34991484,3220.6,3219.6,3.00164]
[1642705451316,7.12796729,3220.7,3219.6,3.00164]
[1642705451317,0.00113685,3219.7,3219.6,6.07734566]
[1642705451516,2.53971484,3220.6,3220.5,0.99115731]
[1642705451718,1.55796729,3220.8,3220.5,0.99115731]
[1642705451916,1.55796729,3220.8,3220.6,1.22919095]
[1642705452116,4.20796729,3220.7,3220.6,1.22919095]
[1642705452718,2.65,3220.7,3220.6,1.22919095]
[1642705453163,1.56421995,3220.8,3220.6,1.22919095]
[1642705453364,1.56421995,3220.8,3220.5,1.59115731]
[1642705454468,0.00625266,3220.8,3220.5,1.59115731]
[1642705454669,0.00625266,3220.8,3220.5,1.89115731]
[1642705455070,1.56421995,3220.8,3220.5,1.89115731]
[1642705455269,0.00625266,3220.8,3220.5,1.89115731]
[1642705455671,0.00625266,3220.8,3220.5,3.27318189]
[1642705455869,1.56421995,3220.8,3220.5,3.27318189]
[1642705456075,1.56421995,3220.8,3220.5,0.9]
[1642705456470,1.56421995,3220.8,3220.5,0.3]
[1642705457606,0.00625266,3220.8,3220.5,0.3]
[1642705457808,5.9,3220.7,3220.4,1.77889567]
[1642705458010,1.56421995,3220.8,3220.4,1.77889567]
[1642705458211,0.00511581,3220.6,3220.4,1.77889567]
[1642705458411,4.56807105,3221.1,3220.4,1.77889567]
[1642705458412,0.00568423,3220.7,3220.4,1.77889567]
[1642705458616,0.00454739,3220.5,3220.4,1.77889567]
[1642705458812,0.00511581,3220.6,3220.4,1.77889567]
[1642705459010,0.00454739,3220.5,3220.4,1.77889567]
[1642705459212,1.56163387,3221.2,3220.4,1.77889567]
[1642705459513,1.55796729,3220.8,3220.4,1.77889567]
[1642705459711,1.55796729,3220.8,3220.4,2.07889567]
[1642705459912,0.00113684,3220.7,3220.4,2.07889567]
[1642705460358,0.00227369,3220.9,3220.4,2.37889567]
[1642705460761,0.00170527,3220.8,3220.4,2.37889567]
[1642705461168,0.00113684,3220.7,3220.4,2.37889567]
[1642705461364,0.00113684,3220.7,3220.4,1.55372315]
[1642705461563,0.00170527,3220.8,3220.4,1.25372315]
[1642705461764,2.27753231,3220.8,3220.4,0.3]
[1642705461965,0.00847105,3220.6,3220.4,0.3]
[1642705462165,0.00922215,3220.5,3220.0,0.6]
[1642705462365,0.00847105,3220.6,3219.7,1.6]
[1642705462565,0.00847105,3220.6,3220.1,0.0022737]
[1642705462765,4.07476052,3220.6,3220.1,0.0022737]
[1642705462965,1.56643834,3220.6,3219.9,1.14083903]
[1642705463370,1.56643834,3220.6,3220.0,0.00284212]
[1642705463966,3.76490491,3220.5,3220.0,0.00284212]
[1642705464214,3.76544469,3220.4,3220.0,0.00284212]
[1642705464416,1.55796729,3220.3,3220.0,0.00284212]
[1642705464616,2.57546236,3220.2,3220.0,0.00284212]
[1642705465117,2.21563262,3220.2,3220.0,0.00284212]
[1642705465315,2.21563262,3220.2,3219.9,0.3]
[1642705465620,2.21563262,3220.2,3220.0,0.00284212]
[1642705466035,1.55796729,3220.3,3220.0,0.00284212]
[1642705466323,1.55796729,3220.4,3220.0,0.00284212]
[1642705466615,1.55796729,3220.3,3220.0,0.00284212]
[1642705466816,1.55796729,3220.2,3220.0,0.00284212]
[1642705467015,1.55796729,3220.2,3219.8,0.00397897]
[1642705467215,2.25252506,3220.5,3219.8,0.00397897]
[1642705467216,3.81963263,3220.1,3219.8,0.00397897]
[1642705467619,1.55796729,3220.1,3219.8,0.00397897]
[1642705468263,3.77935892,3220.3,3219.8,0.00397897]
[1642705468461,1.55796729,3220.2,3219.8,0.00397897]
[1642705469261,1.55796729,3220.1,3219.8,0.00397897]
[1642705469665,2.20316936,3220.3,3219.8,0.00397897]
[1642705469666,3.76113665,3220.3,3219.8,0.00397897]
[1642705469865,0.0039107,3220.5,3219.8,0.00397897]
[1642705469866,3.76778987,3220.2,3219.8,0.00397897]
[1642705470065,1.55796729,3220.1,3219.8,0.00397897]
[1642705471371,4.19467676,3220.1,3219.8,0.00397897]
[1642705471610,2.63670947,3220.0,3219.8,0.00397897]
[1642705472015,2.63670947,3219.9,3219.8,0.00397897]
[1642705472213,1.55796729,3220.2,3219.8,0.00397897]
[1642705472614,2.63670947,3220.1,3219.8,0.00397897]
[1642705472814,2.63670947,3220.0,3219.8,0.00397897]
[1642705473016,2.63670947,3219.9,3219.8,0.00397897]
[1642705473215,1.55796729,3220.3,3219.8,0.00397897]
[1642705474419,2.63670947,3220.4,3219.8,0.00397897]
[1642705474619,4.19467676,3220.3,3219.8,0.00397897]
[1642705474817,2.63670947,3220.2,3219.8,0.00397897]
[1642705475018,2.63670947,3220.1,3219.8,0.00397897]
[1642705475219,2.63670947,3220.0,3219.8,0.00397897]
[1642705475464,2.63670947,3219.9,3219.8,0.00397897]
[1642705475662,1.55796729,3220.4,3219.8,0.00397897]
[1642705476061,2.63670947,3220.4,3219.8,0.00397897]
[1642705476262,2.63670947,3220.3,3219.8,0.78033097]
[1642705476462,2.63670947,3220.2,3219.8,0.78033097]
[1642705476676,1.55796729,3220.4,3219.9,0.00341054]
[1642705476677,2.63670947,3220.1,3219.9,0.00341054]
[1642705476861,1.55796729,3220.4,3219.9,0.00341054]
[1642705477863,1.55796729,3220.4,3220.0,0.77635]
[1642705478064,1.55796729,3220.4,3220.0,1.37635]
[1642705478266,1.55796729,3220.5,3220.0,1.37635]
[1642705478465,2.63670947,3220.4,3220.1,0.776271]
[1642705478666,2.63670947,3220.3,3220.1,0.776271]
[1642705478867,1.55796729,3220.5,3220.2,0.00170527]
[1642705480110,1.55796729,3220.6,3220.2,0.00170527]
[1642705480710,1.55796729,3220.6,3220.2,0.00082355]
[1642705480910,0.00088172,3220.5,3220.2,0.00082355]
[1642705482513,1.55884901,3220.5,3220.2,0.00082355]
[1642705482713,1.55796729,3220.4,3220.2,0.00082355]
[1642705482962,0.00088172,3220.5,3220.2,0.00082355]
[1642705483165,1.55884901,3220.5,3219.9,0.00252882]
[1642705485768,0.00088172,3220.5,3220.0,1.5525772]
[1642705485966,0.00088172,3220.5,3220.1,2.267817]
[1642705486168,0.00088172,3220.5,3220.1,2.11920898]
[1642705486367,0.00088172,3220.5,3220.2,0.00082355]
[1642705487406,0.00088172,3220.5,3220.1,0.00139198]
[1642705487614,1.55789726,3220.6,3220.1,0.00139198]
[1642705487812,2.29740599,3220.9,3220.1,0.00139198]
[1642705488212,0.00113684,3220.7,3220.1,0.00139198]
[1642705490457,0.00113684,3220.7,3220.2,1.55242]
[1642705490657,0.00113684,3220.7,3220.2,3.3016188]
[1642705490859,0.00113684,3220.7,3220.3,0.00113685]
[1642705491059,0.00113684,3220.7,3220.3,1.00113685]
[1642705491261,0.00113684,3220.7,3220.3,0.00113685]
[1642705491464,0.00113684,3220.7,3220.3,1.00113685]
[1642705491663,0.00113684,3220.7,3220.4,1.32641185]
[1642705491863,0.00113684,3220.7,3220.5,0.77617]
[1642705492066,0.00113684,3220.7,3220.5,1.07617]
[1642705492264,0.00113684,3220.7,3220.6,1.15698141]
[1642705492667,0.00113684,3220.7,3220.6,5.00698141]
[1642705492865,0.00113684,3220.7,3220.6,7.46768141]
[1642705493668,0.00113684,3220.7,3220.6,3.91768141]
[1642705495914,0.00113684,3220.7,3220.6,2.82998141]
[1642705497117,2.63579856,3221.1,3220.7,5.92598]
[1642705497416,2.63579856,3221.0,3220.8,2.22507]
[1642705497621,2.63579856,3220.9,3220.8,3.22507]
[1642705497861,0.00113685,3220.9,3220.8,3.0011003]
[1642705498061,0.00113685,3220.9,3220.8,4.3011003]
[1642705498261,0.00113685,3220.9,3220.8,5.65305231]
[1642705498460,0.00113685,3220.9,3220.8,6.71260973]
[1642705498863,1.56571667,3221.4,3220.9,5.4]
[1642705499062,1.56571667,3221.5,3221.0,1.373]
[1642705499262,1.56571667,3221.5,3221.1,4.05]
[1642705499461,1.56571667,3221.5,3221.2,1.9248]
[1642705499665,0.00170527,3221.4,3221.2,2.2248]
[1642705499862,0.00170527,3221.4,3221.3,0.9105643]
[1642705500167,0.00466,3221.6,3221.3,2.5835643]
[1642705500168,1.57037667,3221.6,3221.3,2.5835643]
[1642705500562,0.00227369,3221.5,3221.3,2.5835643]
[1642705500862,0.00170527,3221.4,3221.3,3.92900236]
[1642705501264,0.00466,3221.6,3221.4,5.45]
[1642705501462,0.00466,3221.6,3221.5,0.373]
[1642705501917,0.00579685,3221.6,3221.5,0.673]
[1642705502115,0.00579685,3221.6,3221.5,0.973]
[1642705502316,0.00579685,3221.6,3221.5,0.373]
[1642705502317,1.57151352,3221.6,3221.5,0.373]
[1642705502618,1.02626871,3221.4,3220.9,0.77611]
[1642705502821,1.56297863,3221.2,3220.9,0.77611]
[1642705503018,1.02626871,3221.4,3221.0,0.0022737]
[1642705503215,2.58924734,3221.4,3221.0,0.0022737]
[1642705503415,1.56297863,3221.2,3221.0,0.0022737]
[1642705504514,3.37073665,3221.4,3221.0,0.0022737]
[1642705504717,2.22957651,3221.3,3221.0,0.0022737]
[1642705505015,1.02626871,3221.4,3221.0,0.0022737]
[1642705505016,1.02626871,3221.4,3221.0,0.3022737]
[1642705505364,1.02626871,3221.4,3221.1,0.00170527]
[1642705505757,1.02626871,3221.4,3220.9,0.00284212]
[1642705505958,1.02626871,3221.4,3220.8,0.88091733]
[1642705506160,1.02626871,3221.4,3220.9,0.00284212]
[1642705507160,1.75717091,3221.3,3220.9,0.00284212]
[1642705507359,1.75717091,3221.3,3220.9,0.30284212]
[1642705507563,1.75717091,3221.3,3220.8,1.00341054]
[1642705507763,3.98059819,3221.3,3221.0,0.0022737]
[1642705507966,3.98059819,3221.3,3220.9,0.00284212]
[1642705508162,3.98059819,3221.3,3220.8,0.00341054]
[1642705508362,1.76976263,3221.2,3220.6,0.00454739]
[1642705509212,1.76976263,3221.2,3220.6,0.78071739]
[1642705509613,1.75717091,3221.1,3220.7,0.00397897]
[1642705511718,4.15180584,3221.0,3220.7,0.00397897]
[1642705511918,2.58882721,3221.0,3220.6,0.00454739]
[1642705512117,4.26549309,3221.1,3220.6,0.00454739]
[1642705512319,2.50832218,3221.1,3220.6,0.00454739]
[1642705513169,3.02458434,3221.2,3220.6,0.00454739]
[1642705513364,2.50832218,3221.1,3220.6,0.00454739]
[1642705513565,1.56297863,3221.1,3220.6,0.00454739]
[1642705513765,2.50832218,3221.1,3220.6,0.00454739]
[1642705513967,2.63582795,3221.0,3220.6,0.00454739]
[1642705514165,3.02458434,3221.2,3220.6,0.00454739]
[1642705514166,2.63582795,3220.9,3220.6,0.00454739]
[1642705514365,2.63582795,3220.8,3220.6,0.00454739]
[1642705514567,2.63582795,3220.7,3220.6,0.00454739]
[1642705514765,2.63582795,3221.0,3220.6,0.00454739]
[1642705514965,2.63582795,3220.9,3220.6,0.00454739]
[1642705515166,2.63582795,3220.8,3220.6,0.00454739]
[1642705515365,2.63582795,3220.7,3220.5,0.00511581]
[1642705515670,2.19786338,3221.1,3220.5,0.00511581]
[1642705515865,2.23565289,3221.1,3220.5,0.00511581]
[1642705516066,2.26653495,3221.1,3220.5,0.00511581]
[1642705516266,1.57557035,3221.2,3220.5,0.00511581]
[1642705517515,1.56297863,3221.1,3220.5,0.00511581]
[1642705517719,2.19363059,3221.0,3220.5,0.00511581]
[1642705518117,3.75660922,3221.0,3220.5,0.00511581]
[1642705518325,3.75660922,3221.0,3220.4,0.00568424]
[1642705518521,1.56297863,3221.0,3220.5,0.77621]
[1642705518723,1.56297863,3221.0,3220.5,1.07621]
[1642705518923,1.56297863,3221.0,3220.6,0.00454739]
[1642705519321,4.71242088,3221.2,3220.6,0.00454739]
[1642705519322,1.56297863,3221.1,3220.6,0.00454739]
[1642705519721,1.56297863,3221.0,3220.6,0.00454739]
[1642705520124,1.56297863,3220.9,3220.5,0.00511581]
[1642705520756,1.56297863,3220.9,3220.4,0.30568424]
[1642705520961,1.56297863,3220.9,3220.5,0.00511581]
[1642705521356,3.76960323,3221.0,3220.4,0.30568424]
[1642705521556,3.76960323,3221.0,3220.5,0.00511581]
[1642705521557,1.56297863,3221.0,3220.5,0.00511581]
[1642705522358,2.20932459,3220.9,3220.4,0.30568424]
[1642705522558,1.56297863,3221.0,3220.5,0.00511581]
[1642705522758,1.56297863,3220.9,3220.5,0.00511581]
[1642705523160,1.56297863,3220.9,3220.4,0.30568424]
[1642705523362,1.56297863,3220.9,3220.5,0.00511581]
[1642705523568,1.56297863,3221.0,3220.5,0.00511581]
[1642705524117,1.56217473,3221.0,3220.5,0.00511581]
[1642705524909,1.56217473,3221.0,3220.4,0.30568424]
[1642705525112,2.22756287,3220.9,3220.5,0.00511581]
[1642705525410,1.56217473,3221.0,3220.6,1.47707751]
[1642705525812,1.56217473,3221.0,3220.7,0.00397897]
[1642705527514,2.25405817,3220.9,3220.7,0.00397897]
[1642705527714,4.78783356,3221.1,3220.7,0.00397897]
[1642705527967,2.34446794,3221.0,3220.7,0.00397897]
[1642705528167,2.4559467,3221.1,3219.7,3.85195182]
[1642705528168,0.00696751,3220.6,3219.7,3.07559752]
[1642705528569,0.00696751,3220.6,3219.8,0.00511581]
[1642705528772,0.00696751,3220.6,3219.8,1.38941368]
[1642705529266,0.00696751,3220.6,3219.9,0.00454738]
[1642705529466,0.00696751,3220.6,3219.9,1.15389738]
[1642705529965,0.00696751,3220.6,3220.0,0.00397896]
[1642705530168,0.00696751,3220.6,3220.1,0.05601432]
[1642705530367,0.00696751,3220.6,3220.0,0.00397896]
[1642705530568,0.00696751,3220.6,3220.2,0.00284211]
[1642705530768,2.63614144,3220.5,3220.3,1.398074]
[1642705530972,2.63614144,3220.5,3220.3,1.698074]
[1642705531169,2.63614144,3220.5,3220.4,0.00170527]
[1642705534816,2.63614144,3220.5,3220.4,1.67470527]
[1642705535216,0.00696751,3220.6,3220.5,5.75]
[1642705535461,0.00696751,3220.6,3220.5,2.77163]
[1642705535659,0.00696751,3220.6,3220.5,4.07276684]
[1642705536260,0.00696751,3220.6,3220.5,1.22063684]
[1642705536460,0.00696751,3220.6,3220.5,0.37413684]
[1642705538062,0.00696751,3220.6,3220.5,0.67413684]
[1642705543363,0.00696751,3220.6,3220.5,0.00113684]
[1642705543762,0.00696751,3220.6,3220.4,0.373]
[1642705543966,0.00696751,3220.6,3220.5,0.00113684]
[1642705545567,1.56008976,3220.6,3220.5,0.00113684]
[1642705545769,4.08219726,3220.6,3220.5,0.00113684]
[1642705545967,4.08219726,3220.6,3220.0,0.00397896]
[1642705546168,1.55312225,3220.5,3219.7,0.00568423]
[1642705546368,1.12068387,3220.3,3219.7,0.00568423]
[1642705546619,2.5221075,3220.2,3219.7,0.00568423]
[1642705547011,1.12068387,3220.3,3219.7,0.00568423]
[1642705548515,1.12068387,3220.3,3219.6,0.00625265]
[1642705548917,2.5221075,3220.4,3219.6,0.00625265]
[1642705549116,2.5221075,3220.4,3219.7,0.8226932]
[1642705549317,1.55312225,3220.5,3219.7,1.0764]
[1642705549515,2.32744043,3220.6,3219.7,1.0764]
[1642705549516,2.31179997,3220.4,3219.7,1.0764]
[1642705550767,2.31179997,3220.4,3219.7,0.7764]
[1642705551164,2.26179997,3220.4,3219.7,0.7764]
[1642705552370,2.26161358,3220.4,3219.7,0.7764]
[1642705552968,2.30449202,3220.4,3219.7,0.7764]
[1642705553172,2.24122584,3220.4,3219.7,0.7764]
[1642705553371,1.57222082,3220.6,3219.7,0.7764]
[1642705553372,2.30001348,3220.6,3219.7,0.7764]
[1642705553571,3.84906971,3220.6,3219.7,0.7764]
[1642705554411,1.5681548,3220.6,3219.7,0.7764]
[1642705554616,3.81981524,3220.6,3219.7,0.7764]
[1642705555317,5.37293749,3220.6,3219.7,0.7764]
[1642705555520,2.63603662,3220.5,3219.7,0.7764]
[1642705560269,2.63603662,3220.5,3219.7,1.1494]
[1642705560967,2.63603662,3220.5,3219.8,0.11191145]
[1642705561165,2.63603662,3220.5,3219.8,1.66447145]
[1642705561366,2.63603662,3220.5,3219.9,0.00454738]
[1642705561810,2.24400808,3220.4,3219.9,0.00454738]
[1642705562010,2.63603662,3220.3,3219.9,0.00454738]
[1642705562208,2.38217121,3220.2,3219.9,0.00454738]
[1642705562415,5.51255858,3220.0,3219.9,0.00454738]
[1642705562610,10.9707027,3220.0,3219.9,0.00454738]
[1642705562815,10.9707027,3220.0,3219.4,0.0073895]
[1642705562816,1.52195614,3219.5,3219.4,0.0073895]
[1642705563013,1.52195614,3219.5,3218.6,1.2042]
[1642705563014,4.15799276,3219.5,3218.8,0.01080004]
[1642705563215,2.63603662,3219.4,3218.7,0.01136847]
[1642705563413,2.63603662,3219.3,3218.7,0.01136847]
[1642705563618,8.1327075,3219.8,3218.7,0.01136847]
[1642705563913,8.1327075,3219.8,3218.8,0.77662]
[1642705563914,2.63647214,3219.7,3218.8,0.77662]
[1642705564312,2.63647214,3219.7,3218.9,0.01023162]
[1642705564714,2.2517691,3219.6,3218.9,0.01023162]
[1642705564917,2.63647214,3219.5,3218.9,0.01023162]
[1642705566362,7.89726629,3219.8,3218.9,0.01023162]
[1642705566562,3.9498044,3219.7,3218.9,0.01023162]
[1642705566763,4.86844625,3219.6,3218.9,0.01023162]
[1642705566961,2.63645848,3219.5,3218.9,0.01023162]
[1642705567564,7.81964335,3219.8,3218.9,0.01023162]
[1642705567763,2.63641889,3219.7,3218.9,0.01023162]
[1642705568765,2.22940419,3219.6,3218.9,0.01023162]
[1642705569113,2.93641889,3219.5,3218.9,0.01023162]
[1642705569310,5.24281671,3219.4,3218.9,0.01023162]
[1642705569513,5.24281671,3219.4,3218.7,0.01136847]
[1642705569514,2.63641889,3219.3,3218.7,0.01136847]
[1642705569712,2.49590598,3219.2,3218.7,0.01136847]
[1642705569912,2.63641889,3219.1,3218.7,0.01136847]
[1642705570314,2.63641889,3219.0,3218.7,0.01136847]
[1642705570517,1.2316552,3219.2,3218.7,0.01136847]
[1642705570722,2.63687506,3219.1,3218.7,0.01136847]
[1642705570916,5.02419156,3219.1,3218.7,0.01136847]
[1642705571116,5.02419156,3219.1,3218.4,0.01307374]
[1642705571117,2.63687506,3219.0,3218.4,0.01307374]
[1642705571316,2.63687506,3219.0,3218.3,0.01364216]
[1642705571617,2.37819152,3218.9,3218.3,0.01364216]
[1642705571817,2.38285152,3218.9,3218.3,0.01364216]
[1642705572017,0.00466,3218.9,3218.3,0.01364216]
[1642705572419,2.63715749,3218.8,3218.3,0.01364216]
[1642705572872,2.5221075,3218.7,3218.3,0.01364216]
[1642705573071,2.63715749,3218.8,3218.3,0.01364216]
[1642705573072,2.63715749,3218.6,3218.3,0.01364216]
[1642705573264,0.16002,3218.9,3218.3,0.01364216]
[1642705573265,2.63715749,3218.5,3218.3,0.01364216]
[1642705573466,2.5221075,3218.8,3218.3,0.01364216]
[1642705573665,0.93226,3218.7,3218.3,0.01364216]
[1642705573866,3.41418012,3218.7,3218.3,0.01364216]
[1642705574167,0.7769,3218.7,3218.3,0.01364216]
[1642705574669,2.36777139,3218.6,3218.3,0.01364216]
[1642705575066,0.78156,3218.7,3218.3,0.01364216]
[1642705575266,0.78156,3218.7,3218.4,0.03335227]
[1642705575468,0.78156,3218.7,3218.3,0.01364216]
[1642705575673,1.08156,3218.7,3218.5,0.01250531]
[1642705575866,1.08156,3218.7,3218.3,0.01364216]
[1642705577310,0.78156,3218.7,3218.3,0.04808747]
[1642705577713,0.78156,3218.7,3218.4,0.01307374]
[1642705577914,1.08156,3218.7,3218.4,0.01307374]
[1642705578114,1.08156,3218.7,3218.3,0.01364216]
[1642705578319,0.30466,3218.7,3218.3,0.01364216]
[1642705578515,0.00466,3218.7,3218.3,0.01364216]
[1642705579315,0.78155,3218.7,3218.3,0.01364216]
[1642705580460,0.78155,3218.7,3218.4,0.03633325]
[1642705580666,0.78155,3218.7,3218.3,0.01364216]
[1642705580868,0.78155,3218.7,3218.5,0.01250531]
[1642705581065,0.78155,3218.7,3218.3,0.01364216]
[1642705581465,0.00466,3218.7,3218.3,0.01364216]
[1642705584312,0.00466,3218.7,3218.4,0.0355946]
[1642705584513,0.00466,3218.7,3218.3,0.01364216]
[1642705584714,0.00466,3218.7,3218.5,0.01250531]
[1642705584914,0.00466,3218.7,3218.3,0.01364216]
[1642705587874,0.00466,3218.7,3218.5,0.98425354]
[1642705588068,0.00466,3218.7,3218.3,0.01364216]
[1642705588268,0.00466,3218.7,3218.6,0.01193689]
[1642705588467,0.00466,3218.7,3218.3,0.01364216]
[1642705590170,0.00466,3218.7,3218.4,0.0637804]
[1642705590568,0.00466,3218.7,3218.5,0.01250531]
[1642705590770,0.00466,3218.7,3218.5,0.78918531]
[1642705591176,0.00466,3218.7,3218.6,0.01193689]
[1642705592414,0.00368838,3218.7,3218.6,0.01193689]
[1642705593014,0.00368838,3218.7,3218.5,0.01250531]
[1642705596369,0.00368838,3218.7,3218.5,0.06914611]
[1642705596567,0.00368838,3218.7,3218.5,0.01250531]
[1642705596766,0.00368838,3218.7,3218.6,0.01193689]
[1642705596965,0.00368838,3218.7,3218.5,0.01250531]
[1642705599411,0.00368838,3218.7,3218.5,0.05894336]
[1642705599811,0.00368838,3218.7,3218.6,0.78857689]
[1642705601414,0.00368838,3218.7,3218.6,1.16157689]
[1642705601617,0.00368838,3218.7,3218.6,2.16157689]
[1642705601814,0.00368838,3218.7,3218.6,1.16157689]
[1642705603065,0.00368838,3218.7,3218.6,4.23345498]
[1642705603264,0.00368838,3218.7,3218.6,1.46157689]
[1642705603562,0.00368838,3218.7,3218.6,4.86067074]
[1642705603762,0.00368838,3218.7,3218.6,3.86067074]
[1642705603963,0.00368838,3218.7,3218.6,7.58162123]
[1642705604175,5.8738,3219.6,3219.4,1.77781218]
[1642705604364,2.63662534,3219.5,3219.4,1.94526]
[1642705604764,2.63662534,3220.0,3219.4,1.94526]
[1642705604966,1.43863617,3219.9,3219.4,1.94526]
[1642705605265,2.63662534,3219.8,3219.5,0.00682108]
[1642705605868,2.63662534,3219.7,3219.5,0.00682108]
[1642705606066,2.63662534,3219.6,3219.5,0.00682108]
[1642705606466,5.8306,3220.3,3219.5,0.00682108]
[1642705606724,2.63634862,3220.0,3219.5,0.00682108]
[1642705608719,2.63381124,3220.0,3219.5,0.00682108]
[1642705610018,2.63381124,3220.0,3219.5,0.78325108]
[1642705610461,2.63381124,3220.0,3219.6,0.00625265]
[1642705610865,0.16708798,3220.1,3219.6,0.00625265]
[1642705611762,1.45781528,3219.9,3219.6,0.00625265]
[1642705613669,1.45781528,3219.9,3219.4,0.21216467]
[1642705613870,0.00113684,3219.8,3219.4,0.21216467]
[1642705614116,0.00113684,3219.8,3219.3,1.1982]
[1642705614518,0.00113684,3219.8,3219.4,0.00113685]
[1642705615119,0.00113684,3219.8,3219.1,0.00284212]